Cogmind - Beta 10.1 @@@ ROGUE MODE // 2020.09.26 @ 21:32:32 Player: Palikka Result: Destroyed self with Mini Grenade Launcher Performance ------------- Evolutions (3) 1500 Regions Visited (10) 2000 Robots Destroyed (114) 570 Value Destroyed (3889) 3889 Prototype IDs (34) 680 Alien Tech Used (0) 0 Bonus (381) 381 TOTAL SCORE: 9020 Bonus ------- High Alert Combat Kills 81 Aligned with FarCom 300 Cogmind --------- Core Integrity 0/700 Matter 280/300 Energy 86/100 System Corruption 10% Temperature Cool (0) Movement Core (50) Location -7/Lower Caves Parts ------- > --- POWER (2) -------- (None) > --- PROPULSION (3) --- (None) > --- UTILITY (6) ------ Improved Terrain Scan Processor Advanced Terrain Scan Processor Improved Targeting Computer Advanced Targeting Computer Utility Shielding > --- WEAPON (2) ------- Mini Grenade Launcher > --- INVENTORY (4) ---- Improved Deuterium Engine Gauss Rifle Proton Missile Launcher Peak State ------------ > --- POWER ------------ Light Nuclear Core Enhanced Nuclear Core > --- PROPULSION ------- Light Treads Light Treads Improved Treads > --- UTILITY ---------- High-capacity Storage Unit High-capacity Storage Unit Humpback Improved Signal Interpreter Improved Medium Armor Plating > --- WEAPON ----------- Improved Spread Laser Gauss Cannon > --- INVENTORY -------- Light Deuterium Engine Light Angular Momentum Engine Light Angular Momentum Engine Light Treads Light Treads Improved Cooling System Improved Cooling System Coolant Injector Large Storage Unit High-capacity Storage Unit Large Battery Large Battery High-capacity Matter Pod Improved Sensor Array Long-range Terrain Scanner Advanced Terrain Scan Processor Improved Targeting Computer Kinecellerator Microactuators Hardened Heavy Armor Plating Improved Light Armor Plating Improved Medium Armor Plating Beam Rifle Advanced Beam Rifle Advanced Beam Rifle Plasma Cannon Heavy Assault Rifle Minigun Minigun Minigun Minigun Flak Gun Flak Cannon Flak Cannon Flak Cannon Flak Cannon Flak Cannon Advanced Assault Cannon Proton Missile Launcher [Rating: 43] Favorites ----------- Power Light Nuclear Core Engine Light Ion Engine Power Core Light Nuclear Core Propulsion Light Treads Treads Light Treads Wheel Armored Wheel Flight Unit Cesium-ion Thruster Utility High-capacity Storage Unit Device Improved Heat Sink Storage High-capacity Storage Unit Processor Improved Signal Interpreter Protection Improved Light Armor Plating Weapon Heavy Assault Rifle Energy Gun EM Pulse Gun Energy Cannon Light EM Pulse Cannon Ballistic Gun Heavy Assault Rifle Ballistic Cannon Gauss Cannon Launcher Grenade Launcher Build | -11 -10 -10 -9 -9 -9 -8 -8 -7 -7 -7 ------- Run | Scr Mat Min Mat Min Exi Min Mat Fac Low Low Slots Evolved 6 | . . . 2 . . . 2 2 . . Power 1 | . . . . . . . . 1 . . Propulsion 1 | . . . . . . . . 1 . . Utility 4 | . . . 2 . . . 2 . . . Weapon . | . . . . . . . . . . . Parts Attached 139 | 5 15 1 33 . 5 6 17 52 4 1 Power 18 | 1 2 . 4 . . 1 1 9 . . Engine 13 | 1 2 . 3 . . 1 1 5 . . Core 5 | . . . 1 . . . . 4 . . Reactor . | . . . . . . . . . . . Propulsion 25 | 2 1 1 5 . . 2 4 9 1 . Treads 20 | 2 . 1 2 . . 2 4 9 . . Leg . | . . . . . . . . . . . Wheel 4 | . 1 . 3 . . . . . . . Hover . | . . . . . . . . . . . Flight 1 | . . . . . . . . . 1 . Utility 41 | 1 6 . 9 . 5 . 3 14 3 . Device 8 | . 1 . 2 . 1 . . 4 . . Storage 15 | 1 5 . 3 . 4 . 1 1 . . Processor 6 | . . . . . . . 1 3 2 . Hackware . | . . . . . . . . . . . Protection 12 | . . . 4 . . . 1 6 1 . Artifact . | . . . . . . . . . . . Weapon 55 | 1 6 . 15 . . 3 9 20 . 1 Energy Gun 12 | . 4 . 2 . . . 3 3 . . Energy Cannon 6 | . . . . . . . 1 5 . . Ballistic Gun 21 | 1 . . 9 . . 2 3 6 . . Ballistic Cannon 5 | . . . . . . . . 5 . . Launcher 11 | . 2 . 4 . . 1 2 1 . 1 Special Weapon . | . . . . . . . . . . . Impact Weapon . | . . . . . . . . . . . Slashing Weapon . | . . . . . . . . . . . Piercing Weapon . | . . . . . . . . . . . Special Melee Weapon . | . . . . . . . . . . . Unidentified Prototypes 4 | . . . . . . . 1 3 . . Parts Lost 68 | . 4 1 15 . . 4 11 32 . 1 Power 13 | . 1 . 3 . . . 1 8 . . Propulsion 20 | . 1 1 4 . . 2 4 7 . 1 Utility 15 | . . . 4 . . . 1 10 . . Weapon 20 | . 2 . 4 . . 2 5 7 . . Highest Loss Streak 8 | . 3 1 3 . . 4 7 8 . 1 Average Slot Usage (%) 88 | . 90 99 94 100 97 86 82 85 21 46 Engine 6 | . 13 14 6 11 11 11 9 3 . . Core 4 | . . . 4 . . . . 9 . . Treads 15 | . 16 13 10 11 11 20 17 18 . . Wheel 4 | . 9 14 11 11 11 . . . . . Device 3 | . 3 . 3 11 8 . . 4 . . Storage 25 | . 21 28 32 33 32 33 26 22 . . Processor 3 | . . . . . . . 9 4 18 30 Protection 4 | . . . 6 . . . 1 6 1 7 Energy Gun 3 | . 17 14 3 . . . 3 1 . . Ballistic Gun 8 | . 2 . 14 22 22 21 12 4 . . Ballistic Cannon 3 | . . . . . . . . 6 . . Launcher 1 | . 4 14 1 . . . . . . . Naked Turns 8 | . . . . . . . . 8 . . Heaviest Build 178 | 10 44 44 63 58 153 153 161 178 1 2 Greatest Support 65 | 40 40 16 20 12 12 40 45 65 6 6 Greatest Overweight (x) 37 | . 2 2 5 4 12 3 6 37 . . Average Overweight (x) 2 | . . 2 3 4 5 3 3 2 . . Largest Inventory Capacity 40 | 6 16 16 22 22 40 40 40 40 4 4 Average Capacity 29 | 5 9 16 21 22 25 40 39 35 4 4 Most Carried 40 | 5 13 15 22 22 30 31 36 40 4 4 Average Carried 26 | 4 9 14 20 21 22 29 29 34 4 3 Final Capacity 40 | 6 16 16 22 22 40 40 40 4 4 4 Final Carried 36 | 5 13 15 22 22 30 31 36 4 4 3 Class Distribution -------------------- 83% | Hauler-Mutant 16% | Mutant Dominant Class ---------------- Mutant | -10/Materials Mutant | -10/Mines Hauler-Mutant | -9/Materials Hauler-Mutant | -9/Mines Hauler-Mutant | -9/Exiles Hauler-Mutant | -8/Mines Hauler-Mutant | -8/Materials Hauler-Mutant | -7/Factory Mutant | -7/Lower Caves Mutant | -7/Lower Caves Resources | -11 -10 -10 -9 -9 -9 -8 -8 -7 -7 -7 ----------- Run | Scr Mat Min Mat Min Exi Min Mat Fac Low Low Matter Collected 3467 | 190 244 307 609 . 153 161 349 1396 58 . Remotely . | . . . . . . . . . . . Salvage Created 4287 | . 336 60 1234 . . 135 1113 1409 . . Parts 227 | . 12 1 82 . . 5 51 76 . . Haulers Intercepted 7 | . 2 . 2 . . . 1 2 . . Recyclers Shooed 3 | . . . 2 . . . . 1 . . Parts Field Recycled . | . . . . . . . . . . . Retrieved Matter . | . . . . . . . . . . . Parts Self-Destructed 4 | . . . . . . . . . 4 . Prevented . | . . . . . . . . . . . Kills | -11 -10 -10 -9 -9 -9 -8 -8 -7 -7 -7 ------- Run | Scr Mat Min Mat Min Exi Min Mat Fac Low Low Combat Hostiles Destroyed 97 | . 8 1 32 . . 3 24 29 . . Guns 43 | . 3 . 21 . . 3 9 7 . . Cannons 19 | . . . . . . . 2 17 . . AOE 29 | . 5 . 9 . . . 13 2 . . Classes Destroyed 12 | . 4 . 4 . . . . 4 . . Worker 3 | . . . 1 . . . 1 1 . . Builder 2 | . . . 2 . . . . . . . Hauler 7 | . 2 . 2 . . . 1 2 . . Operator 1 | . . . . . . . . 1 . . Watcher 4 | . 1 . 1 . . . 1 1 . . Swarmer 25 | . 3 . 9 . . . 9 4 . . Grunt 47 | . 5 1 14 . . 3 12 12 . . Brawler 3 | . . . 1 . . . 1 1 . . Duelist 2 | . . . . . . . . 2 . . Sentry 14 | . . . 8 . . . 2 4 . . Hunter 1 | . . . . . . . . 1 . . Programmer 5 | . . . . . . . . 5 . . Best Kill Streak 8 | . 4 1 8 . . 2 6 3 . . Combat Bots Only 6 | . 3 1 6 . . 2 6 3 . . Max Kills in Single Turn 5 | . 4 1 5 . . 1 4 2 . . Gunslinging 1 | . . . 1 . . . . . . . Exploded 3 | . 3 . 3 . . . 3 2 . . Melee . | . . . . . . . . . . . Uniques/NPCs Destroyed . | . . . . . . . . . . . Combat | -11 -10 -10 -9 -9 -9 -8 -8 -7 -7 -7 -------- Run | Scr Mat Min Mat Min Exi Min Mat Fac Low Low Damage Taken 9036 | . 664 147 1792 . . 449 1689 4172 . 123 Core 1317 | . 82 34 196 . . 58 240 609 . 98 Absorbed by Shields . | . . . . . . . . . . . Core Remaining (%) 61 | 100 . 53 . . . 36 56 . . . Volleys Fired 409 | . 66 12 106 . . 18 54 152 . 1 Largest 2 | . 2 1 2 . . 2 2 2 . 1 Hottest 122 | . 80 40 96 . . 46 63 122 . 30 Shots Fired 608 | . 76 12 173 . . 31 76 239 . 1 Gun 413 | . 70 12 166 . . 30 55 80 . . Cannon 165 | . . . . . . . 8 157 . . Launcher 30 | . 6 . 7 . . 1 13 2 . 1 Special . | . . . . . . . . . . . Kinetic 385 | . 16 . 128 . . 30 35 176 . . Thermal 57 | . 24 . 2 . . . 11 20 . . Explosive 15 | . 6 . 7 . . 1 . . . 1 Electromagnetic 151 | . 30 12 36 . . . 30 43 . . Robot Hit Streak 29 | . 9 10 18 . . 7 18 29 . . Robot Miss Streak 18 | . 2 1 6 . . 2 2 18 . . Penetration Max 1 | . . . . . . . . 1 . . Secondary Targets 7 | . . . 1 . . 2 3 1 . . Max Gunslinging Chain 1 | . . . 1 . . 1 1 1 . . Shots Hit Robots 434 | . 50 11 113 . . 23 57 180 . . Core Hits 219 | . 20 2 62 . . 9 48 78 . . Critical Hits 7 | . 1 . . . . . 1 5 . . Critical Kills 4 | . 1 . . . . . . 3 . . Critical Parts Destroyed 2 | . . . . . . . 1 1 . . Melee Attacks . | . . . . . . . . . . . Impact . | . . . . . . . . . . . Slashing . | . . . . . . . . . . . Piercing . | . . . . . . . . . . . Sneak Attacks . | . . . . . . . . . . . Combat Hostiles . | . . . . . . . . . . . Follow-up Attacks . | . . . . . . . . . . . Damage Inflicted 10383 | . 876 210 2667 . . 418 2030 4182 . . Guns 4452 | . 547 149 1502 . . 340 573 1341 . . Cannons 2684 | . . . . . . . 151 2533 . . Explosions 3218 | . 329 61 1151 . . 78 1297 302 . . Melee . | . . . . . . . . . . . Ramming 29 | . . . 14 . . . 9 6 . . Kinetic 4453 | . 100 . 976 . . 340 307 2730 . . Thermal 1721 | . 175 61 527 . . . 390 568 . . Explosive 1045 | . 329 . 638 . . 78 . . . . Electromagnetic 3135 | . 272 149 512 . . . 1324 878 . . Impact . | . . . . . . . . . . . Slashing . | . . . . . . . . . . . Piercing . | . . . . . . . . . . . Highest Corruption 10 | . 1 1 1 1 1 1 1 10 10 10 Average Corruption 1 | . 1 1 1 1 1 1 1 2 10 10 Corruption Purged . | . . . . . . . . . . . Effects 63 | . . 2 7 . 4 1 1 38 8 2 Message Errors 20 | . . 2 1 . 1 . 1 12 3 . Matter Fused 8 | . . . . . . . . 7 1 . Heat Flow Errors 3 | . . . . . . . . 2 1 . Energy Discharges 8 | . . . 3 . 3 1 . 1 . . Parts Rejected 2 | . . . . . . . . 2 . . Data Loss (minor) 5 | . . . 1 . . . . 3 . 1 Data Loss (major) 1 | . . . . . . . . 1 . . Misdirections 7 | . . . . . . . . 3 3 1 Targeting Errors 6 | . . . 1 . . . . 5 . . Weapon Failures 3 | . . . 1 . . . . 2 . . Overload Shots . | . . . . . . . . . . . Overflow Damage 362 | . 20 . 197 . . . 31 114 . . Projectiles 72 | . . . . . . . . 72 . . Explosions 290 | . 20 . 197 . . . 31 42 . . Melee . | . . . . . . . . . . . Knockbacks 23 | . . . . . . . . 23 . . Impact . | . . . . . . . . . . . Kinetic 20 | . . . . . . . . 20 . . Secondary 3 | . . . . . . . . 3 . . Self-Inflicted Damage 947 | . 22 30 294 . . 5 314 236 . 46 Shots 28 | . 1 1 6 . . 1 14 4 . 1 Rammed 5 | . 1 . 2 . . . 1 1 . . Targets Rammed 5 | . 1 . 2 . . . 1 1 . . Kicked . | . . . . . . . . . . . Crushed . | . . . . . . . . . . . Highest Temperature 381 | . 132 102 107 . . 1 198 381 226 . Average Temperature 69 | . 51 65 21 . . 1 50 86 124 . Received Heat Transfer 2826 | . 360 66 480 . . 225 486 1197 . 12 Effects 2 | . . . . . . . . 2 . . Energy Bleed 1 | . . . . . . . . 1 . . Interference 1 | . . . . . . . . 1 . . Siege Activations . | . . . . . . . . . . . Robots Corrupted 6 | . . 1 2 . . . . 3 . . Combat Hostiles 6 | . . 1 2 . . . . 3 . . Parts Fried 20 | . 3 1 3 . . . 8 5 . . Impact Corruptions . | . . . . . . . . . . . Robots Melted . | . . . . . . . . . . . Combat Hostiles . | . . . . . . . . . . . Parts Melted 1 | . . . . . . . . 1 . . Heat Transferred 2586 | . 400 100 637 . . . 559 890 . . Parts Sabotaged . | . . . . . . . . . . . Parts Stolen . | . . . . . . . . . . . Parts Stripped . | . . . . . . . . . . . Power Chain Reactions 11 | . . 1 4 . . . 5 1 . . Missiles Intercepted . | . . . . . . . . . . . Alert | -11 -10 -10 -9 -9 -9 -8 -8 -7 -7 -7 ------- Run | Scr Mat Min Mat Min Exi Min Mat Fac Low Low Peak Influence 506 | . 92 30 350 128 . 51 506 429 . . Initial 196 | . . . 11 128 . . . 196 . . Average 126 | . 43 27 156 128 . 47 169 142 . . Maximum Alert Level 2 | . . . 1 . . . 2 2 . . Low Security (%) 71 | 100 100 100 57 100 . 100 59 67 . . Level 1 25 | . . . 42 . . . 29 28 . . Level 2 2 | . . . . . . . 11 3 . . Level 3 . | . . . . . . . . . . . Level 4 . | . . . . . . . . . . . Level 5 . | . . . . . . . . . . . High Security . | . . . . . . . . . . . Max Security . | . . . . . . . . . . . Squads Dispatched 22 | . 1 . 3 . . . 5 13 . . Investigation 3 | . 1 . . . . . 2 . . . Extermination 4 | . . . . . . . . 4 . . Reinforcement 11 | . . . 3 . . . 2 6 . . Assault . | . . . . . . . . . . . Garrison 4 | . . . . . . . 1 3 . . Intercept . | . . . . . . . . . . . Construction Impeded 2 | . . . . . . . . 2 . . Haulers Reinforced . | . . . . . . . . . . . Stealth | -11 -10 -10 -9 -9 -9 -8 -8 -7 -7 -7 --------- Run | Scr Mat Min Mat Min Exi Min Mat Fac Low Low Distress Signals 11 | . 1 . 4 . . . 4 2 . . Communications Jammed . | . . . . . . . . . . . Distress Signals . | . . . . . . . . . . . Times Spotted 171 | . 12 2 50 . . 3 40 59 . 5 Peak Tracking Total 10 | . 5 2 6 . . 3 10 5 . 5 Tactical Retreats 16 | . 1 1 1 . . . 4 9 . . Traps | -11 -10 -10 -9 -9 -9 -8 -8 -7 -7 -7 ------- Run | Scr Mat Min Mat Min Exi Min Mat Fac Low Low Traps Triggered 7 | . 1 . . . . . 1 5 . . Indirectly 1 | . . . . . . . 1 . . . Trap Hack Attempts . | . . . . . . . . . . . Triggered . | . . . . . . . . . . . Disarmed . | . . . . . . . . . . . Reprogrammed . | . . . . . . . . . . . Reused . | . . . . . . . . . . . Traps Extracted . | . . . . . . . . . . . Installed . | . . . . . . . . . . . Triggered 2 | . . . . . . . . . 2 . Machines | -11 -10 -10 -9 -9 -9 -8 -8 -7 -7 -7 ---------- Run | Scr Mat Min Mat Min Exi Min Mat Fac Low Low Machines Disabled 19 | . 2 . 5 . . 1 4 7 . . Max in Single Turn 3 | . 1 . 3 . . 1 1 2 . . Garrison Access 2 | . . . . . . . . 2 . . Machines Sabotaged . | . . . . . . . . . . . Garrisons Compromised . | . . . . . . . . . . . Overloaded Fab Kills . | . . . . . . . . . . . Fab Network Shutdowns . | . . . . . . . . . . . Hacking | -11 -10 -10 -9 -9 -9 -8 -8 -7 -7 -7 --------- Run | Scr Mat Min Mat Min Exi Min Mat Fac Low Low Machines Accessed 26 | . 8 . 5 . 1 . 1 11 . . Terminals 22 | . 8 . 5 . . . 1 8 . . Fabricators 1 | . . . . . . . . 1 . . Repair Stations . | . . . . . . . . . . . Recycling Units . | . . . . . . . . . . . Scanalyzers . | . . . . . . . . . . . Garrison Access 2 | . . . . . . . . 2 . . Total Hacks 79 | . 32 . 20 . 1 . 5 21 . . Successful 46 | . 19 . 11 . 1 . 3 12 . . Failed 33 | . 13 . 9 . . . 2 9 . . Catastrophic 7 | . 1 . 1 . . . . 5 . . Database Lockouts . | . . . . . . . . . . . Manual 57 | . 19 . 16 . 1 . 5 16 . . Terminals 74 | . 32 . 20 . . . 5 17 . . Fabricators 2 | . . . . . . . . 2 . . Repair Stations . | . . . . . . . . . . . Recycling Units . | . . . . . . . . . . . Scanalyzers . | . . . . . . . . . . . Garrison Access 2 | . . . . . . . . 2 . . Terminal Hacks 16 | . 8 . 4 . 1 . 1 2 . . Prototype ID Bank 4 | . 3 . 1 . . . . . . . Branch Access Points 1 | . 1 . . . . . . . . . Unreport Threat 6 | . 3 . 2 . . . . 1 . . Locate Traps 1 | . . . . . . . . 1 . . Zone Layout 3 | . 1 . 1 . . . 1 . . . EX-Prototype ID Bank 1 | . . . . . 1 . . . . . Fabricator Hacks 2 | . . . . . . . . 2 . . Network Status 1 | . . . . . . . . 1 . . Build 1 | . . . . . . . . 1 . . Repair Station Hacks . | . . . . . . . . . . . Recycling Unit Hacks . | . . . . . . . . . . . Scanalyzer . | . . . . . . . . . . . Garrison Access Hacks 2 | . . . . . . . . 2 . . Seal Access 2 | . . . . . . . . 2 . . Unauthorized Hacks 26 | . 11 . 7 . . . 2 6 . . Terminals 26 | . 11 . 7 . . . 2 6 . . Track 12 | . 5 . 3 . . . 1 3 . . Botnet 14 | . 6 . 4 . . . 1 3 . . Fabricators . | . . . . . . . . . . . Repair Stations . | . . . . . . . . . . . Recycling Units . | . . . . . . . . . . . Scanalyzers . | . . . . . . . . . . . Garrison Access . | . . . . . . . . . . . Data Cores Recovered . | . . . . . . . . . . . Used . | . . . . . . . . . . . Hacking Detections 21 | . 7 . 5 . . . 1 8 . . Full Trace Events 2 | . 1 . . . . . 1 . . . Feedback Events . | . . . . . . . . . . . Feedback Blocked . | . . . . . . . . . . . Robot Schematics Acquired . | . . . . . . . . . . . Robots Built 1 | . . . . . . . . 1 . . Matter 153 | . . . . . . . . 153 . . Time 81 | . . . . . . . . 81 . . Total Robot Build Rating 1 | . . . . . . . . 1 . . Part Schematics Acquired . | . . . . . . . . . . . Parts Built . | . . . . . . . . . . . Matter . | . . . . . . . . . . . Time . | . . . . . . . . . . . Total Part Build Rating . | . . . . . . . . . . . Parts Repaired . | . . . . . . . . . . . Time . | . . . . . . . . . . . Parts Recycled . | . . . . . . . . . . . Recycled Matter . | . . . . . . . . . . . Retrieved Matter . | . . . . . . . . . . . Retrieved Components . | . . . . . . . . . . . Parts Scanalyzed . | . . . . . . . . . . . Part Schematics Acquired . | . . . . . . . . . . . Parts Damaged . | . . . . . . . . . . . Bothacking | -11 -10 -10 -9 -9 -9 -8 -8 -7 -7 -7 ------------ Run | Scr Mat Min Mat Min Exi Min Mat Fac Low Low Used RIF Installer . | . . . . . . . . . . . Robots Hacked . | . . . . . . . . . . . Non-combat . | . . . . . . . . . . . Combat . | . . . . . . . . . . . Robot Hacks Applied . | . . . . . . . . . . . Relay Couplers Released . | . . . . . . . . . . . Robots Rewired . | . . . . . . . . . . . Allies Hacked 1 | . . . . . . . . 1 . . Hacks Repelled . | . . . . . . . . . . . Allies | -11 -10 -10 -9 -9 -9 -8 -8 -7 -7 -7 -------- Run | Scr Mat Min Mat Min Exi Min Mat Fac Low Low Total Allies 1 | . . . . . . . . 1 . . Largest Group 1 | . . . . . . . . 1 . . Highest-Rated Group 10 | . . . . . . . . 10 . . Highest-Rated Ally 10 | . . . . . . . . 10 . . Total Orders . | . . . . . . . . . . . Ally Attacks . | . . . . . . . . . . . Total Damage . | . . . . . . . . . . . Kills . | . . . . . . . . . . . Allies Corrupted . | . . . . . . . . . . . Allies Melted . | . . . . . . . . . . . Intel | -11 -10 -10 -9 -9 -9 -8 -8 -7 -7 -7 ------- Run | Scr Mat Min Mat Min Exi Min Mat Fac Low Low Robot Analysis Total . | . . . . . . . . . . . Derelict Logs Recovered 2 | . . 1 . . . . . . 1 . Drone Launches . | . . . . . . . . . . . Drone Recoveries . | . . . . . . . . . . . Exploration | -11 -10 -10 -9 -9 -9 -8 -8 -7 -7 -7 ------------- Run | Scr Mat Min Mat Min Exi Min Mat Fac Low Low Turns Passed 9827 | 65 992 329 1566 75 969 406 973 4300 139 13 Spaces Moved 5076 | 38 662 250 906 53 656 151 302 1755 274 29 Core 339 | 8 . . . . . . . 110 218 3 Treads 2275 | 30 143 . 4 . . 151 302 1645 . . Legs . | . . . . . . . . . . . Wheels 2380 | . 519 250 902 53 656 . . . . . Hover . | . . . . . . . . . . . Flight 82 | . . . . . . . . . 56 26 Fastest Speed 40 | 50 100 120 120 130 130 220 212 50 40 40 Average Speed 159 | 136 121 120 130 130 143 220 218 204 47 41 Slowest Speed 1900 | 160 160 120 200 130 210 220 280 1900 50 50 Overloaded Moves . | . . . . . . . . . . . Propulsion Burnouts . | . . . . . . . . . . . Robots Hopped . | . . . . . . . . . . . Cave-ins Triggered 1 | . . . . . . . . 1 . . Time Travels 1 | . . . . . 1 . . . . . Exploration Rate (%) 42 | 4 92 41 74 10 91 25 15 49 50 11 Regions Visited 10 Branch Regions 6 Pre-discovered Areas 1 | . . . . . . . . . 1 . Known Exits Taken 1 | . 1 . . . . . . . . . Unknown Exits Taken 9 | 1 . 1 1 1 1 1 1 1 1 . Scrap Searched 5 | . . 2 . . . 1 . . 2 . Spaces Dug 38 | . 13 . . . . . . 25 . . Terrain Destroyed 218 | . 31 3 71 . . 6 22 85 . . Melee . | . . . . . . . . . . . Projectile 34 | . . . . . . . . 34 . . AOE 184 | . 31 3 71 . . 6 22 51 . . Terrain Rammed . | . . . . . . . . . . . Walls Destroyed . | . . . . . . . . . . . Machines Disabled . | . . . . . . . . . . . Actions | -11 -10 -10 -9 -9 -9 -8 -8 -7 -7 -7 --------- Run | Scr Mat Min Mat Min Exi Min Mat Fac Low Low Total 6271 | 50 782 267 1132 59 687 194 542 2248 279 31 Wait 376 | . 11 . 31 5 . 15 139 175 . . Move 5066 | 37 661 249 905 52 655 150 301 1754 273 29 Hop . | . . . . . . . . . . . Pick Up 168 | 8 16 4 34 1 13 5 27 59 1 . Fast Attach 40 | 2 5 . 5 . 2 . 2 20 4 . Attach 59 | 3 3 1 14 . . 4 12 21 . 1 Detach 8 | . . . 1 . 2 . 1 4 . . Swap 40 | . 7 . 14 . 3 2 3 11 . . Drop 97 | . 12 1 20 1 12 . 2 48 1 . Fire 409 | . 66 12 106 . . 18 54 152 . 1 Melee . | . . . . . . . . . . . Ram 3 | . . . 2 . . . . 1 . . Kick . | . . . . . . . . . . . Crush 2 | . 1 . . . . . 1 . . . Escape Stasis 3 | . . . . . . . . 3 . . Rewire . | . . . . . . . . . . . Trap . | . . . . . . . . . . . Miscellaneous . | . . . . . . . . . . . Route ------- -11/Scrapyard -10/Materials (discovered 5 exits: *Mat x3 / *Min x2) -10/Mines -9/Materials (discovered 4 exits: *Mat x2 / [*Min x2]) -9/Mines (discovered 2 exits: *Mat / *Exi) -9/Exiles (discovered 2 exits: [*Min x2]) -8/Mines -8/Materials -7/Factory (discovered 4 exits: *Fac x2 / *Sto / [*Low]) -7/Lower Caves -7/Lower Caves History --------- Turn | Location | Event 25 | -11/Scrapyard | Discovered new exit (range 14) 66 | -11/Scrapyard | Entered Materials 257 | -10/Materials | Lost 3 parts (1p1n1w) 291 | -10/Materials | Discovered new exit (range 16) 305 | -10/Materials | Build established: Mutant 505 | -10/Materials | Discovered new exit (range 12) 713 | -10/Materials | Discovered new exit (range 14) 867 | -10/Materials | Discovered new exit (range 4) 1016 | -10/Materials | Identified exit to Mines 1058 | -10/Materials | Entered Mines 1296 | -10/Mines | Discovered new exit (range 9) 1387 | -10/Mines | Entered Materials 1387 | -9/Materials | Evolved 2 slots: Utility x2 1615 | -9/Materials | Lost 3 parts (1p1n1u) 1658 | -9/Materials | Discovered new exit (range 6) 1707 | -9/Materials | Build established: Hauler-Mutant 2039 | -9/Materials | Lost 3 parts (2n1u) 2110 | -9/Materials | Discovered new exit (range 15) 2544 | -9/Materials | Lost 3 parts (2u1w) 2587 | -9/Materials | Discovered new exit (range 7) 2941 | -9/Materials | Discovered new exit (range 10) 2953 | -9/Materials | Entered Mines 2954 | -9/Mines | Met a Derelict bent on vengeance 2966 | -9/Mines | Discovered new exit (range 7) 3017 | -9/Mines | Deemed a non-threat by the Exiles lab entrance 3017 | -9/Mines | Discovered new exit (range 5) 3028 | -9/Mines | Entered Exiles 3051 | -9/Exiles | Discovered new exit (range 14) 3065 | -9/Exiles | Met 8R-AWN 3087 | -9/Exiles | Met EX-HEX 3129 | -9/Exiles | Met EX-BIN 3246 | -9/Exiles | Aligned with FarCom system 3247 | -9/Exiles | Given EX-Vault access code 3277 | -9/Exiles | Opened EX-Vault 3293 | -9/Exiles | Found Chronowheel 3293 | -9/Exiles | Activated Chronowheel 3293 | -9/Exiles | Spacetime reconverged on an earlier point 3331 | -9/Exiles | Warned to stay clear of 0b10 Research branches 3367 | -9/Exiles | Met EX-DEC 3509 | -9/Exiles | Visited The Gauntlet 3769 | -9/Exiles | Discovered new exit (range 14) 3997 | -9/Exiles | Entered Mines 4022 | -8/Mines | Core integrity fell below 50% 4067 | -8/Mines | Lost 4 parts (2n2w) 4230 | -8/Mines | Discovered new exit (range 5) 4403 | -8/Mines | Entered Materials 4403 | -8/Materials | Evolved 2 slots: Utility x2 5184 | -8/Materials | Lost 7 parts (1p3n1u2w) 5337 | -8/Materials | Discovered new exit (range 9) 5357 | -8/Materials | Garrison activated, responded to threat 5376 | -8/Materials | Entered Factory 5376 | -7/Factory | Evolved 2 slots: Power x1, Propulsion x1 5377 | -7/Factory | Identified exit to Storage 5480 | -7/Factory | Lost 3 parts (1p2w) 5916 | -7/Factory | Discovered new exit (range 8) 6010 | -7/Factory | Garrison activated, responded to threat 6657 | -7/Factory | Fabricated A-02 Transporter? 6801 | -7/Factory | Discovered new exit (range 9) 6883 | -7/Factory | Identified exit to Factory 8292 | -7/Factory | Lost 8 parts (5u3w) 9241 | -7/Factory | Crushed by falling debris 9426 | -7/Factory | System corruption reached 10% 9535 | -7/Factory | Lost 3 parts (1p2w) 9604 | -7/Factory | Core integrity fell below 50% 9617 | -7/Factory | Core integrity fell below 20% 9672 | -7/Factory | Discovered new exit (range 10) 9676 | -7/Factory | Entered Lower Caves 9786 | -7/Lower Caves | Encountered a Warlord checkpoint 9787 | -7/Lower Caves | Discovered new exit (range 11) 9801 | -7/Lower Caves | Learned location of Zion (-6) 9815 | -7/Lower Caves | Entered another Lower Caves area 9826 | -7/Lower Caves | Attracted the attention of an 0b10 checkpoint 9828 | -7/Lower Caves | Destroyed self with Mini Grenade Launcher Last Messages --------------- 09788_ Found Utility Shielding. 09788_ Found Cesium-ion Thruster. 09788_ Found Adv. Targeting Computer. 09788_ Found 31 Matter. 09789_ Acquired Cesium-ion Thruster. 09790_ Acquired 10 matter. 09791_ Acquired Adv. Targeting Computer. 09793_ Acquired Utility Shielding. 09801_ Acquired derelict log, extracted data. World map updated: -6/Zion. 09802_ QT3M%UA&EUHH&V&VFEUGS3GR 09812_ Acquired 20 matter. LOCATION=UNKNOWN GOAL=ESCAPE 09816_ UN-27Z(k) breaks down the debris. 09816_ U3-E5S(k) breaks down the debris. 09817_ System corrupted: Component data lost. 09817_ NG-ZII(k) breaks down the debris. 09826_ Y-54 Guardian: "INTERCEPTING UNREGISTERED DERELICT." 09826_ Cesium-ion Thruster destroyed. Map ----- +----------------------------------------------------+ | ?????????????????????????????????????????????????? | | ?????????????????????????????????????????????????? | | ?????????????????????????????????????????????????? | | ?????????????????????????????????????????????????? | | ?????????????????????????????????????????????????? | | ?????????????????????????????????????????????????? | | ?????????????????????????????????????????????????? | | ?????????????????????????????????????????????????? | | ?????????????????????????????????????????????????? | | ?????????????????????????????????????????????????? | | ?????????????????????????????????????????????????? | | ?????????????????????????????????????????????????? | | ????????????????????????##???????????????????????? | | ???????????????????????? #??????????????????????? | | ??????????????????##???? ########??????????????? | | ?????????????????## ????? ##?###?????????? | | ????????????????## #????? ## ##????????? | | ????????????????# #?#### ?????????? | | ?????????????????# ## ## #? ??????????? | | ???????????##????# #??# ???????????? | | ???????????? ## #???# #???????????? | | ?????????????? ###?# ##########??? | | ??????????? ??????# ### #??? | | ????????? ## #??? | | ??????????# s ##?????# #### | | ????????# ## @ ##????## # | | ????????# ??### ### #????# # | | ???????? ?????## #### ###### | | ????????? ????????# ##?# | | ????????? ?????????# ##??# | | ????????? ?????????# #???## ####### #### | | ?????????? ???????????# ????## ##?????# #??? | | ?????????? ???????????? ???# #????? #??? | | ?????????????????????? ??# #???? ??? | | ????????????????????? #?# #??? ?? | | ???????????????????? ###?# ?? ?? | | ????????????????????? ##???# ? #? | | ??????????????????????? ?????# ? | | ???????????????????????? ?????## ### ? | | ???????????????????????? ??????# #??#### | | ???????????????????????? ??????# #?????# | | ????????????????????????????????# ????? | | ???????????????????????????????? ??????? ?? | | ???????????????????????????????? ##????????????? | | ?????????????????????????????????????????????????? | | ?????????????????????????????????????????????????? | | ?????????????????????????????????????????????????? | | ?????????????????????????????????????????????????? | | ?????????????????????????????????????????????????? | | ?????????????????????????????????????????????????? | +----------------------------------------------------+ Best States ------------- Heat Dissipation 61 Energy Generation 26 Energy Capacity 360 Matter Stores 300 Matter Capacity 300 Sight Range 16 Terrain Scan Density 310 Armor Coverage 225 Utility Shielding 33 Evasion (%) 62 Targeting Accuracy 14 Recoil Reduction 3 Kinecelleration 30 Item Schematics ----------------- None Robot Schematics ------------------ None Fabricated ------------ A-02 Transporter | x1 | -7/Factory | Preloaded Alien Tech Used ----------------- None Achievements -------------- None Challenges ------------ None Game ------ Seed SingularityLauncherCoupler Manual? 0 Play Time 01:13:40 Cumulative 278.3 hours Start 2020.09.26 @ 17:39:14 End 2020.09.26 @ 21:32:32 Sessions 3 Manual Loads 0 Difficulty Rogue Special Mode None Game No. 389 Rogue 389 Adventurer 0 Explorer 0 Win Type - Total 32 Types 22/0/7/3/0/0/0/0/0 Lore% 85 Gallery% 81 Achievement% 49 Wizard Run 0 Options --------- ASCII 0 Keyboard 1 Movement Numpad Keybinds 0 Fullscreen 1 Font 24/Smallcaps Map View 76x50 Tactical HUD 1 Map Filters NONE Filters NONE Steam 1 RUN: ee24829f-42e0-41b4-af10-21429af6c191